bitfinex-derivatives/quotes_ETHF0:USTF0_20251117
["timestamp","ask_amount","ask_price","bid_price","bid_amount"]
[1763344926456,0.3573,3114.1,3114.0,3.2078]
[1763344926652,0.3573,3114.1,3114.0,3.5834]
[1763344927563,0.3573,3114.1,3114.0,3.21068527]
[1763344928257,0.3573,3114.1,3114.0,0.00288527]
[1763344929663,3.2078,3114.3,3114.2,0.3756]
[1763344929861,3.2078,3115.4,3114.8,0.3756]
[1763344930161,0.00481448,3115.5,3115.4,0.3756]
[1763344931162,0.00804198,3115.5,3115.4,0.3756]
[1763344931362,3.21584198,3115.5,3115.4,0.3756]
[1763344931557,0.00804198,3115.5,3115.4,0.3756]
[1763344931854,0.00804198,3115.5,3115.4,0.89593]
[1763344932654,0.00804198,3115.5,3115.4,0.3756]
[1763344935052,0.36534198,3115.5,3115.2,3.2078]
[1763344936148,0.00804198,3115.5,3115.4,0.3756]
[1763344942777,0.2253,3116.5,3116.2,0.3011]
[1763344942778,0.52015,3116.5,3116.2,0.3011]
[1763344943060,3.2078,3117.1,3116.2,0.3011]
[1763344943265,6.107,3116.9,3116.8,0.3011]
[1763344943969,0.52485448,3117.2,3117.0,0.1857]
[1763344944268,0.3047,3117.1,3116.8,0.00351261]
[1763344944660,0.3047,3116.2,3116.1,0.3011]
[1763344944862,3.2078,3116.3,3116.1,0.3011]
[1763344945067,3.2078,3116.3,3116.2,0.3011]
[1763344945364,3.2078,3116.3,3115.6,0.8571292]
[1763344945365,0.3047,3116.1,3115.6,1.3774092]
[1763344945667,3.2078,3116.3,3115.8,0.3011]
[1763344947166,0.52022,3116.1,3115.8,0.3011]
[1763344947465,0.52024,3116.0,3115.8,0.3011]
[1763344947670,0.3047,3115.9,3115.8,0.3011]
[1763344948754,0.5202,3116.2,3115.8,0.3011]
[1763344948961,0.52022,3116.1,3115.8,0.3011]
[1763344949160,3.2078,3116.3,3115.8,0.3011]
[1763344949370,3.2078,3116.3,3116.2,0.3011]
[1763344949566,0.52016,3116.5,3116.4,0.3011]
[1763344950170,0.3047,3116.1,3115.9,3.2078]
[1763344950374,0.5202,3116.3,3116.0,0.4868]
[1763344950564,0.52018,3116.4,3116.2,0.3011]
[1763344951070,0.5202,3116.2,3116.0,0.1857]
[1763344951268,3.2078,3116.7,3116.0,0.1857]
[1763344951672,0.5202,3116.3,3116.0,0.1857]
[1763344951869,0.52017,3116.4,3116.3,0.3011]
[1763344952063,3.2078,3116.7,3116.3,0.3011]
[1763344952469,0.52014,3116.6,3116.3,0.3011]
[1763344952766,0.52015,3116.5,3116.4,0.3011]
[1763344954065,0.82485,3116.5,3116.4,0.3011]
[1763344954267,3.2078,3116.7,3115.9,3.2078]
[1763344954268,0.3047,3116.1,3115.9,3.2078]
[1763344954469,0.3047,3115.7,3115.6,0.00372229]
[1763344959066,3.72807,3115.8,3115.6,0.30482229]
[1763344959374,0.52022,3116.1,3116.0,0.3011]
[1763344959568,0.82492,3116.1,3116.0,0.3011]
[1763344959770,0.82492,3116.1,3115.6,0.52401229]
[1763344960174,0.52024,3116.0,3115.6,0.00372229]
[1763344960376,3.2078,3116.3,3115.6,0.00372229]
[1763344961178,3.2078,3116.3,3115.6,0.52401229]
[1763344961478,0.52021,3116.2,3115.6,0.52401229]
[1763344961667,0.52024,3116.0,3115.9,0.3011]
[1763344961982,0.82494,3116.0,3115.9,0.3011]
[1763344965068,3.2078,3116.3,3115.6,0.00372229]
[1763344965069,3.2078,3116.3,3116.2,0.3011]
[1763344965274,4.34507473,3116.7,3116.5,0.4868]
[1763344965477,3.2078,3116.7,3116.6,0.3011]
[1763344965778,4.34507473,3117.1,3117.0,0.4868]
[1763344965973,3.2078,3117.1,3117.0,0.4868]
[1763344966578,0.52006,3117.0,3116.5,1.0428292]
[1763344966772,3.2078,3117.1,3116.5,0.1857]
[1763344967077,0.52014,3116.6,3116.5,0.3011]
[1763344967280,0.52015,3116.5,3116.2,0.8571292]
[1763344967483,0.3047,3116.3,3116.0,4.2506292]
[1763344967682,0.52014,3116.6,3116.2,0.3011]
[1763344967875,3.72793,3116.7,3116.6,0.3011]
[1763344968393,3.72793,3116.7,3116.0,4.2506292]
[1763344968394,0.52015,3116.5,3116.0,4.2506292]
[1763344968569,3.2078,3116.7,3116.0,4.2506292]
[1763344968875,0.2933,3116.1,3116.0,3.2078]
[1763344969070,0.2933,3116.3,3116.0,3.3837]
[1763344969270,0.2933,3116.1,3116.0,3.3837]
[1763344969468,1.74748263,3117.0,3115.8,0.8571292]
[1763344969469,0.81355,3115.9,3115.8,0.8571292]
[1763344969682,0.81355,3115.9,3115.6,3.21152229]
[1763344969873,0.2933,3115.9,3115.8,0.2951]
[1763344971674,0.81356,3115.9,3115.6,3.21152229]
[1763344972073,0.2933,3115.9,3115.8,0.2951]
[1763344972786,3.2078,3116.3,3115.8,0.2951]
[1763344973178,0.52022,3116.1,3115.8,0.2951]
[1763344973484,0.81355,3115.9,3115.8,0.2951]
[1763344974583,0.2933,3115.7,3115.6,3.21152229]
[1763344974980,0.2933,3115.7,3115.6,0.00372229]
[1763344975384,3.5011,3115.7,3115.6,0.00372229]
[1763344976075,4.63837473,3115.7,3115.6,0.00372229]
[1763344976286,4.6461103,3115.7,3115.6,0.00372229]
[1763344977478,3.5011,3115.7,3115.6,0.00372229]
[1763344978486,3.2078,3115.7,3115.6,0.29882229]
[1763344978683,3.72802,3116.1,3116.0,0.2951]
[1763344979485,0.52024,3116.0,3115.6,3.73180229]
[1763344980287,0.52024,3116.0,3115.9,0.2951]
[1763344980685,0.81354,3116.0,3115.9,0.2951]
[1763344981389,0.2933,3116.0,3115.9,0.2951]
[1763344982382,0.52018,3116.4,3116.0,0.471]
[1763344982582,3.2078,3116.6,3116.5,0.471]
[1763344982778,4.3528103,3117.0,3116.5,0.471]
[1763344982976,0.2933,3116.1,3116.0,3.2078]
[1763344983782,0.52021,3116.2,3115.6,1.15680281]
[1763344983783,0.81356,3115.9,3115.6,0.86085149]
[1763344984093,0.2933,3115.7,3115.6,0.86085149]
[1763344984487,0.2933,3115.7,3115.6,0.00372229]
[1763344985887,0.2933,3114.8,3114.7,0.8571292]
[1763344986093,0.2933,3114.8,3114.6,3.2078]
[1763344986290,0.2933,3114.8,3114.7,0.2951]
[1763344986888,0.2933,3114.3,3114.2,0.50697832]
[1763344987092,0.2933,3114.3,3113.8,3.2078]
[1763344987390,0.52053,3114.2,3113.8,3.2078]
[1763344987691,0.52056,3114.1,3113.8,3.2078]
[1763344987886,0.52052,3114.3,3113.8,3.21168017]
[1763344988194,0.81388,3113.9,3113.8,3.21168017]
[1763344988494,0.2933,3113.8,3113.7,0.03211665]
[1763344989179,0.1824,3114.0,3113.4,3.2078]
[1763344989180,0.2933,3113.5,3113.4,3.2078]
[1763344989401,0.81395,3113.5,3113.4,3.21188254]
[1763344990095,0.1824,3114.0,3113.4,3.50698254]
[1763344990283,0.1824,3114.5,3113.5,0.1759]
[1763344990284,0.52053,3114.3,3113.5,0.1759]
[1763344990490,0.52054,3114.2,3113.5,0.1759]
[1763344990688,0.1824,3114.5,3113.5,0.1759]
[1763344990883,5.52,3114.4,3113.5,0.1759]
[1763344991699,0.52054,3114.2,3113.5,0.1759]
[1763344992199,0.52054,3114.2,3113.4,3.73253254]
[1763344992200,0.52058,3114.0,3113.4,3.21188254]
[1763344992387,0.4757,3113.5,3113.4,3.21188254]
[1763344992592,0.5206,3113.8,3113.4,3.50698254]
[1763344993397,0.52062,3113.7,3113.4,3.50698254]
[1763344993596,0.1824,3114.0,3113.4,3.50698254]
[1763344993597,0.52059,3113.9,3113.4,3.50698254]
[1763344993899,0.52059,3113.9,3113.5,0.1759]
[1763344994402,0.1824,3114.0,3113.4,3.21188254]
[1763344994403,0.2933,3113.5,3113.4,3.21188254]
[1763344996502,0.4757,3113.5,3113.4,3.21188254]
[1763344997901,0.52064,3113.6,3113.4,3.46318254]
[1763344998207,0.2494,3113.5,3113.4,3.21188254]
[1763344999507,0.376,3113.5,3113.4,3.21188254]
[1763344999708,0.2494,3113.5,3113.4,3.21188254]
[1763345001211,0.3707,3113.5,3113.4,3.21188254]
[1763345002405,0.3707,3113.5,3113.4,0.00408254]
[1763345002807,0.3707,3113.5,3112.0,0.1759]
[1763345002808,0.1313,3113.0,3112.2,3.4566]
[1763345003109,3.20780595,3117.3,3114.9,11.5647]
[1763345003294,0.1575,3119.0,3117.2,3.2078]
[1763345003498,0.1575,3118.5,3117.1,1.69966246]
[1763345003704,0.1575,3118.5,3118.2,2.29973895]
[1763345003705,0.00481448,3118.3,3118.2,2.29973895]
[1763345003909,0.1575,3118.5,3118.2,3.93644828]
[1763345004113,0.00383149,3118.5,3118.3,1.12952206]
[1763345004403,0.2609,3118.9,3118.4,4.33732206]
[1763345004597,0.2609,3118.9,3118.2,0.00301907]
[1763345004598,12.59011012,3118.9,3118.8,4.91916177]
[1763345004812,0.2609,3118.9,3118.8,4.33732206]
[1763345005004,12.59011012,3118.9,3118.8,4.33732206]
[1763345005206,2.5247853,3118.9,3118.8,4.33732206]
[1763345005410,0.00400268,3118.9,3118.8,6.62438828]
[1763345005608,0.1575,3120.0,3119.8,0.51959]
[1763345005814,5.24696067,3119.9,3119.7,3.7274]
[1763345006013,2.83657805,3119.8,3119.7,3.7274]
[1763345006214,5.35736067,3119.8,3119.7,4.8723378]
[1763345006413,5.35736067,3119.8,3119.7,4.3527378]
[1763345006615,5.36091885,3119.8,3119.7,4.3527378]
[1763345008017,5.36091885,3119.8,3119.7,10.3527378]
[1763345008018,0.00355818,3119.8,3119.7,10.3527378]
[1763345008215,0.1575,3120.6,3119.7,4.3527378]
[1763345008519,5.24696067,3120.5,3120.3,1.69446823]
[1763345008722,0.1575,3121.3,3120.4,4.34129715]
[1763345008922,0.1575,3121.3,3120.8,1.69434244]
[1763345008923,0.2609,3120.9,3120.8,1.69434244]
[1763345009223,3.10112342,3120.9,3120.8,4.34519087]
[1763345009411,5.62190604,3120.9,3120.8,4.34519087]
[1763345010107,5.62190604,3120.9,3120.8,6.03567074]
[1763345010312,5.36100604,3120.9,3120.8,4.34519087]
[1763345010914,2.52442799,3120.9,3120.8,4.34519087]
[1763345011118,0.00364537,3120.9,3120.8,4.34519087]
[1763345011717,5.62190604,3120.9,3120.8,4.34519087]
[1763345011918,9.21152342,3120.9,3120.8,0.40877438]
[1763345012221,0.3713,3120.7,3120.6,2.4081]
[1763345012422,11.23787805,3120.7,3120.6,2.4081]
[1763345013028,11.23787805,3120.7,3120.6,2.41132509]
[1763345013029,10.97697805,3120.7,3120.6,2.41132509]
[1763345013317,0.00364537,3120.9,3120.6,4.09645192]
[1763345013520,2.83657805,3120.8,3120.7,1.68512683]
[1763345013724,2.83657805,3120.8,3120.6,2.41132509]
[1763345013725,3.09747805,3120.7,3120.6,2.41132509]
[1763345013925,0.3713,3120.7,3120.6,2.41132509]
[1763345014120,0.00364537,3120.9,3120.6,4.09645192]
[1763345014323,0.1104,3120.7,3120.6,4.09645192]
[1763345014721,0.1575,3126.6,3122.2,3.212]
[1763345014945,0.1575,3126.6,3125.0,1.69966246]
[1763345015223,0.1575,3126.6,3125.8,0.5186]
[1763345015419,0.1575,3126.6,3125.2,1.68512683]
[1763345015617,0.15979956,3126.6,3125.3,1.68512683]
[1763345015817,0.00229956,3126.6,3126.5,3.2078]
[1763345016126,0.1575,3127.8,3126.5,3.2078]
[1763345016325,0.1575,3127.8,3127.7,3.2078]
[1763345017125,0.15980228,3127.8,3127.7,3.21165621]
[1763345017417,0.00230228,3127.8,3127.7,3.21165621]
[1763345018131,6.00230228,3127.8,3127.7,2.06351259]
[1763345018324,0.1575,3127.2,3126.7,3.2078]
[1763345018521,8.3025,3127.2,3127.1,3.2078]
[1763345019223,0.00230228,3127.8,3127.1,3.2078]
[1763345019423,0.00710044,3127.8,3127.7,3.2078]
[1763345020718,0.51837,3127.3,3127.1,0.00825808]
[1763345020932,0.51839,3127.1,3126.8,2.74126081]
[1763345021122,0.1575,3127.2,3126.8,2.09886907]
[1763345021922,0.1575,3127.2,3126.8,2.1023789]
[1763345022620,0.00710044,3127.8,3126.8,8.1023789]
[1763345022830,0.00710044,3127.8,3127.7,3.2078]
[1763345023531,3.2078,3129.9,3127.7,9.2078]
[1763345023825,0.1575,3128.8,3128.6,3.2078]
[1763345024223,3.88329,3129.6,3128.6,3.2078]
[1763345024423,0.03688081,3128.7,3128.6,3.2078]
[1763345025118,0.03688081,3128.7,3128.6,3.72594]
[1763345025319,0.00479816,3129.0,3128.6,3.72594]
[1763345025527,0.00479816,3129.0,3128.6,3.2078]
[1763345025730,0.51817,3128.5,3128.3,0.00479816]
[1763345026030,0.1575,3128.0,3127.6,3.2078]
[1763345027521,0.67575,3128.0,3127.6,3.2078]
[1763345027723,0.1575,3128.0,3127.6,3.2078]
[1763345027923,0.67575,3128.0,3127.6,3.2078]
[1763345028127,0.1575,3128.0,3127.6,3.2078]
[1763345028436,0.51828,3127.8,3127.6,3.2078]
[1763345028632,0.67574,3128.0,3127.6,3.2078]
[1763345029030,3.2078,3128.1,3127.6,3.2078]
[1763345029229,0.51826,3127.9,3127.6,3.2078]
[1763345029429,0.1564,3128.0,3127.6,3.2078]
[1763345030032,0.15955458,3128.0,3127.6,3.2078]
[1763345030235,0.51829,3127.8,3127.6,3.2078]
[1763345030535,0.15955458,3128.0,3127.2,3.2078]
[1763345030737,0.51831,3127.6,3127.2,3.2078]
[1763345030940,0.51833,3127.5,3127.2,3.2078]
[1763345031132,0.1564,3127.6,3127.2,3.2078]
[1763345031326,0.51832,3127.5,3127.2,3.2078]
[1763345031528,0.1564,3127.6,3127.2,3.2078]
[1763345031826,3.3642,3127.6,3126.8,3.21130983]
[1763345032236,0.5184,3127.1,3126.8,3.21130983]
[1763345032527,0.1564,3126.9,3126.8,3.21130983]
[1763345032733,0.1564,3126.9,3126.8,4.2685129]
[1763345033033,3.3642,3126.9,3126.8,0.00350983]
[1763345033226,3.3642,3126.9,3126.8,1.06592467]
[1763345033732,9.3642,3126.9,3126.0,4.89292683]
[1763345033921,3.3642,3126.9,3126.0,3.2078]
[1763345034121,0.51853,3126.3,3126.0,3.2078]
[1763345034322,0.51845,3126.8,3126.0,3.2078]
[1763345034526,0.51848,3126.6,3126.0,3.2078]
[1763345034721,0.51844,3126.8,3126.0,3.2078]
[1763345034925,0.51846,3126.7,3126.4,3.2078]
[1763345035126,0.1564,3126.9,3126.4,3.2078]
[1763345035728,0.1564,3126.9,3126.8,3.2078]
[1763345036328,0.1564,3127.6,3126.8,3.2078]
[1763345036835,0.51826,3127.9,3127.2,4.89292683]
[1763345037037,0.15955458,3128.0,3127.6,3.2078]
[1763345037430,0.67779458,3128.0,3127.6,3.2078]
[1763345037631,0.15955458,3128.0,3127.6,3.2078]
[1763345037833,0.51828,3127.8,3127.6,3.2078]
[1763345038232,0.5183,3127.6,3127.5,1.68512683]
[1763345038438,0.6747,3127.6,3127.3,1.68512683]
[1763345038929,0.6747,3127.6,3127.2,3.2078]
[1763345039126,0.1564,3127.6,3127.2,3.2078]
[1763345039438,0.1564,3127.6,3127.2,4.89292683]
[1763345039736,0.51833,3127.5,3127.2,4.89292683]
[1763345040040,0.51832,3127.5,3127.2,4.89292683]
[1763345040240,0.51834,3127.4,3127.3,1.68512683]
[1763345040439,0.51834,3127.4,3127.2,1.68512683]
[1763345040741,0.1564,3126.9,3126.8,4.89292683]
[1763345041040,0.1564,3126.9,3126.8,3.2078]
[1763345042938,0.1564,3126.9,3126.8,4.90374614]
[1763345043155,0.51844,3126.8,3126.6,1.69594614]
[1763345043333,0.76187,3126.0,3125.9,5.46708238]
[1763345043532,0.76187,3126.0,3125.9,3.2078]
[1763345045547,0.2433,3126.0,3125.9,4.03493085]
[1763345046040,0.2433,3126.0,3125.9,0.82713085]
[1763345048151,0.2433,3126.0,3125.9,3.085e-05]
[1763345048152,9.7193,3126.0,3125.9,3.085e-05]
[1763345048542,3.7193,3126.0,3125.9,3.085e-05]
[1763345050647,0.1564,3126.2,3125.9,4.06537786]
[1763345050842,0.1564,3126.2,3125.9,4.06534701]
[1763345051042,0.51856,3126.1,3125.9,3.2078]
[1763345051450,0.2433,3126.0,3125.9,3.2078]
[1763345051754,0.2433,3125.6,3125.5,4.06534701]
[1763345051954,0.2433,3125.6,3125.5,3.2078]
[1763345053640,0.51859,3125.9,3125.5,3.2078]
[1763345054149,0.51855,3126.1,3125.5,3.2078]
[1763345054453,0.51855,3126.1,3125.5,4.06534701]
[1763345054654,0.51861,3125.8,3125.5,4.06534701]
[1763345055149,0.51861,3125.8,3125.6,0.85754701]
[1763345055544,0.51863,3125.6,3125.5,4.06534701]
[1763345056352,0.51863,3125.6,3125.5,3.2078]
[1763345056941,0.51863,3125.6,3125.5,4.06390231]
[1763345057144,0.51861,3125.8,3125.5,4.06390231]
[1763345057339,0.51862,3125.7,3125.5,4.06390231]
[1763345058461,0.51862,3125.7,3125.6,0.85610231]
[1763345059158,0.51858,3126.0,3125.6,0.85610231]
[1763345059452,0.51859,3125.9,3125.7,0.85610231]
[1763345059759,0.51861,3125.8,3125.5,3.2078]
[1763345059963,8.6628,3126.3,3125.5,3.2078]
[1763345060251,5.455,3126.3,3126.2,4.3635]
[1763345061255,11.6804,3126.9,3126.2,4.3635]
[1763345061646,0.51845,3126.8,3126.2,4.3635]
[1763345061849,0.51848,3126.6,3126.2,4.3635]
[1763345062050,0.51845,3126.8,3126.2,4.3635]
[1763345062758,0.51844,3126.8,3126.2,4.3635]
[1763345064258,0.51846,3126.7,3126.2,4.3635]
[1763345065059,11.6804,3126.9,3126.2,4.3635]
[1763345065859,2.39117,3126.6,3126.5,3.2078]
[1763345066049,1.8727,3126.6,3126.5,3.2078]
[1763345067766,11.524,3126.9,3126.8,1.1557]
[1763345068656,2.20302764,3128.0,3127.1,1.1557]
[1763345068957,7.385,3127.9,3127.5,4.3635]
[1763345069156,1.8727,3127.6,3127.5,3.2078]
[1763345071254,2.39107,3127.2,3127.1,3.2078]
[1763345071457,0.51836,3127.3,3127.1,3.2078]
[1763345071759,1.8727,3127.2,3127.1,3.2078]
[1763345072754,1.8727,3126.8,3126.7,3.2078]
[1763345074249,1.0591,3127.0,3126.7,3.2078]
[1763345074754,0.51842,3126.9,3126.7,3.2078]
[1763345074956,1.8727,3126.8,3126.7,3.2078]
[1763345080758,1.87560999,3126.8,3126.7,3.21070383]
[1763345082367,1.87560999,3126.8,3126.7,0.00290383]
[1763345082565,1.87560999,3126.8,3126.7,3.21070383]
[1763345086061,1.87560999,3126.8,3126.7,0.00290383]
[1763345086262,1.87560999,3126.8,3126.7,3.21070383]
[1763345097369,3.01953763,3126.8,3126.7,0.00290383]
[1763345097576,1.87560999,3126.8,3126.7,3.83e-06]
[1763345097777,3.58990225,3126.8,3126.7,3.83e-06]
[1763345099679,1.87560999,3126.8,3126.7,3.83e-06]
[1763345100178,3.58990225,3126.8,3126.7,3.83e-06]
[1763345100780,3.58990225,3126.8,3126.7,3.82440383]
[1763345100781,0.00290999,3126.8,3126.7,3.82440383]
[1763345100980,0.00479731,3127.1,3127.0,0.6137]
[1763345101181,1.15010324,3127.8,3127.7,0.6137]
[1763345101379,1.0591,3128.0,3127.9,0.6137]
[1763345101585,2.8846,3128.0,3127.9,0.6137]
[1763345101780,1.0591,3128.0,3127.9,0.6137]
[1763345101978,1.06262756,3128.0,3127.9,0.6137]
[1763345102374,0.00352756,3128.0,3127.9,0.6137]
[1763345102581,7.53541576,3128.3,3128.2,0.6102]
[1763345102782,1.15010324,3129.2,3129.1,0.6054]
[1763345102981,1.15010324,3129.3,3129.2,0.6054]
[1763345103182,1.0288,3129.5,3129.3,0.6054]
[1763345103483,1.8255,3129.4,3129.1,3.2078]
[1763345103685,1.0288,3129.5,3129.4,0.6054]
[1763345103887,0.00479731,3129.6,3129.5,0.6054]
[1763345104086,1.83029731,3129.6,3129.5,3.2078]
[1763345104281,1.83359739,3129.6,3129.5,3.2078]
[1763345105679,0.00809739,3129.6,3129.5,3.8132]
[1763345106384,4.2366,3130.5,3130.4,0.6054]
[1763345106385,1.0288,3130.5,3130.4,0.6054]
[1763345106578,11.70257,3130.9,3130.4,3.8132]
[1763345107193,11.1848,3130.9,3130.8,0.6054]
[1763345107588,13.0103,3130.9,3130.4,3.2078]
[1763345107894,13.52807,3130.9,3130.4,3.2078]
[1763345108391,1.8255,3130.1,3130.0,3.2078]
[1763345108589,0.51784,3130.4,3130.0,3.2078]
[1763345108785,1.0288,3130.5,3130.4,0.6054]
[1763345108986,0.51778,3130.8,3130.7,0.6054]
[1763345109587,0.51778,3130.8,3130.4,3.21259731]
[1763345109790,2.8543,3130.5,3130.4,3.21259731]
[1763345109992,2.85752573,3130.5,3130.4,3.21259731]
[1763345110396,1.03202573,3130.5,3129.8,3.2078]
[1763345110596,3.2078,3130.3,3129.8,3.2078]
[1763345110893,7.971,3130.2,3129.8,3.2078]
[1763345111090,0.51792,3130.0,3129.8,3.2078]
[1763345111883,0.51792,3130.0,3129.9,1.8678]
[1763345112990,1.8255,3129.9,3129.8,3.2078]
[1763345113389,7.971,3130.2,3130.1,1.8678]
[1763345113589,0.00322573,3130.5,3130.4,1.8678]
[1763345114899,0.51775,3131.0,3130.9,1.8678]
[1763345116005,0.5211464,3131.0,3130.9,1.8678]
[1763345117191,0.51778,3130.8,3130.6,3.2078]
[1763345117394,0.51778,3130.8,3130.7,1.5303]
[1763345118393,0.8916964,3131.0,3130.2,3.2078]
[1763345118599,0.51778,3130.8,3130.7,1.513]
[1763345119997,0.51779,3130.7,3130.4,1.513]
[1763345120203,0.51781,3130.6,3130.5,1.513]
[1763345120702,0.51778,3130.8,3130.5,0.9015]
[1763345120893,0.0033964,3131.0,3130.9,1.513]
[1763345121399,4.35010324,3132.8,3130.5,0.9015]
[1763345121400,3.2078,3131.5,3131.4,1.513]
[1763345121593,3.2078,3131.9,3131.8,1.513]
[1763345122102,3.2078,3131.9,3131.5,0.9015]
[1763345122103,5.23303,3132.3,3131.6,3.2078]
[1763345122298,3.2078,3132.3,3132.2,1.513]
[1763345122503,3.21560576,3132.3,3132.2,1.513]
[1763345122707,0.00780576,3132.3,3132.2,1.513]
[1763345125200,4.72330576,3132.3,3131.6,3.21521409]
[1763345125507,0.51757,3132.1,3132.0,1.513]
[1763345125906,3.72537,3132.1,3132.0,1.513]
[1763345126307,0.51757,3132.1,3132.0,1.513]
[1763345127102,0.51762,3131.7,3131.6,0.00741409]
[1763345127301,5.23312,3131.7,3131.6,0.00741409]
[1763345127607,0.9484,3131.5,3130.7,3.2078]
[1763345128109,0.51777,3130.9,3130.7,3.2078]
[1763345128609,1.5077,3130.8,3130.7,0.00380447]
[1763345129008,4.7155,3130.8,3130.7,0.00380447]
[1763345129400,4.7155,3130.8,3129.8,3.2078]
[1763345129401,1.5077,3130.6,3129.8,3.2078]
[1763345129603,0.51791,3130.0,3129.5,0.9015]
[1763345129810,0.51788,3130.2,3129.9,1.513]
[1763345130007,0.51792,3130.0,3129.5,0.9015]
[1763345130616,0.00402602,3130.0,3129.9,1.513]
[1763345130810,0.51792,3129.9,3129.5,0.90516949]
[1763345131008,0.51792,3129.9,3129.8,1.513]
[1763345131209,0.51797,3129.7,3129.5,0.00366949]
[1763345132708,1.5077,3129.6,3129.5,0.00366949]
[1763345132909,2.4561,3129.6,3129.5,0.00366949]
[1763345133111,0.5181,3128.9,3128.6,3.2078]
[1763345133415,0.51811,3128.8,3128.6,3.2078]
[1763345133610,0.51811,3128.8,3127.8,2.0496348]
[1763345133611,0.51814,3128.6,3128.1,3.2078]
[1763345133815,0.51818,3128.4,3128.1,3.2078]
[1763345134007,0.9484,3129.0,3127.7,0.85918882]
[1763345134008,4.793,3128.6,3127.7,3.2078]
[1763345134209,2.02592,3128.2,3128.1,0.00388123]
[1763345136507,0.9484,3128.4,3128.1,0.00388123]
[1763345136711,0.5182,3128.3,3128.1,0.00388123]
[1763345136905,1.5077,3128.2,3128.1,0.00388123]
[1763345138809,0.9484,3128.4,3128.1,0.00388123]
[1763345139109,3.73075903,3128.5,3128.1,0.00388123]
[1763345139516,1.46658,3128.4,3128.1,0.00388123]
[1763345140519,0.51818,3128.4,3128.1,0.00388123]
[1763345141111,0.00478903,3128.5,3128.3,1.513]
[1763345141314,1.5077,3128.4,3128.1,3.21168123]
[1763345141517,0.95318903,3128.5,3128.1,3.21168123]
[1763345142012,0.52295903,3128.5,3128.1,3.21168123]
[1763345142219,0.95318903,3128.5,3128.1,3.21168123]
[1763345143118,1.47134903,3128.5,3128.1,3.21168123]
[1763345143427,0.51818,3128.4,3128.1,3.21168123]
[1763345143720,0.95318903,3128.5,3128.1,3.21168123]
[1763345143920,0.00478903,3128.5,3128.4,1.513]
[1763345146518,2.46088903,3128.5,3128.1,3.21168123]
[1763345146824,2.97904903,3128.5,3128.1,3.21168123]
[1763345147018,0.00478903,3128.5,3128.4,1.513]
[1763345147714,4.793,3128.6,3128.5,2.4097]
[1763345147925,4.793,3128.6,3128.5,5.6175]
[1763345149117,0.00478903,3128.9,3128.8,1.513]
[1763345150621,7.939,3129.4,3129.3,1.5144]
[1763345150921,21.819,3130.7,3129.0,0.3167]
[1763345150922,2.49362602,3130.0,3129.1,3.2078]
[1763345151322,0.00402602,3130.0,3129.9,1.5144]
[1763345153827,3.01153602,3130.0,3129.6,0.00478903]
[1763345155024,0.00402602,3130.0,3129.9,1.5144]
[1763345155725,0.00402602,3130.0,3129.6,0.00478903]
[1763345155726,2.49362602,3130.0,3129.6,0.00478903]
[1763345156318,0.00402602,3130.0,3129.9,1.5144]
[1763345157518,0.00402602,3130.0,3129.9,4.7222]
[1763345161734,0.00402602,3130.0,3129.9,10.7222]
[1763345162329,0.00402602,3130.0,3129.9,4.7222]
[1763345163335,2.49362602,3130.0,3129.9,3.2078]
[1763345163732,2.49362602,3130.0,3129.9,4.7222]
[1763345164230,0.00402602,3130.0,3129.9,4.7222]
[1763345164434,7.936,3130.5,3130.4,1.5144]
[1763345164629,3.2078,3130.9,3130.0,0.8874]
[1763345164630,3.2078,3131.3,3130.9,1.5144]
[1763345164831,0.9375,3131.5,3131.2,1.5144]
[1763345165432,0.9406791,3131.5,3131.2,1.51675124]
[1763345165733,1.4583491,3131.5,3131.2,1.51675124]
[1763345165942,1.5521,3131.3,3131.2,0.00235124]
[1763345167145,0.51786,3130.3,3129.8,3.2078]
[1763345167327,8.79733,3130.5,3129.8,3.2078]
[1763345167533,0.51785,3130.4,3129.8,3.2078]
[1763345167732,7.342,3130.5,3130.2,2.03227]
[1763345168037,15.23845,3131.6,3130.6,0.5178]
[1763345168229,8.8606791,3131.5,3130.7,3.2078]
[1763345168537,8.8606791,3131.5,3130.8,0.51777]
[1763345168733,8.8606791,3131.5,3130.7,3.2078]
[1763345169238,3.2078,3131.2,3130.7,3.2078]
[1763345169438,3.72552,3131.2,3130.7,3.2078]
[1763345170032,0.9375,3131.0,3130.7,3.2078]
[1763345171240,1.5521,3130.8,3130.7,3.2078]
[1763345171439,1.5521,3130.8,3130.2,0.0024218]
[1763345171440,0.51779,3130.7,3130.2,0.0024218]
[1763345172043,0.51782,3130.6,3130.2,0.0024218]
[1763345172338,3.2078,3130.8,3130.7,1.5144]
[1763345172635,4.494,3130.9,3130.8,1.5144]
[1763345173236,6.0461,3130.9,3130.8,1.5144]
[1763345173541,6.0461,3130.9,3130.3,3.2078]
[1763345173542,0.9375,3130.5,3130.3,3.2078]
[1763345173741,0.51781,3130.6,3130.3,3.2078]
[1763345174038,0.51781,3130.6,3130.2,0.0024218]
[1763345174039,1.45533,3130.5,3130.2,0.0024218]
[1763345174636,1.5521,3130.3,3130.2,0.0024218]
[1763345174939,0.9375,3130.5,3130.2,1.5168218]
[1763345175140,4.494,3130.9,3130.4,1.5144]
[1763345175733,4.494,3130.9,3130.8,1.5144]
[1763345177542,0.51773,3131.1,3130.8,1.5144]
[1763345178444,11.1158,3131.2,3130.8,1.5144]
[1763345178644,11.1158,3131.2,3131.1,1.3296]
[1763345179248,12.3619,3131.2,3130.7,3.2078]
[1763345179755,1.2461,3130.8,3130.7,3.2078]
[1763345180047,0.7732,3131.0,3130.7,4.5374]
[1763345180247,11.1158,3131.2,3130.9,1.3296]
[1763345180738,2.53704,3131.0,3130.7,3.2078]
[1763345180944,1.2461,3130.8,3130.7,3.2078]
[1763345181250,11.63352,3131.2,3130.9,1.3296]
[1763345181446,1.2461,3131.0,3130.9,1.3296]